[Event "44th Chess Olympiad Open 2022"]
[Site "Chennai"]
[Date "2022.08.09"]
[Round "11.54"]
[White "Kassis, Antoine"]
[Black "Rodriguez Guevara, Celia M."]
[Result "1-0"]
[ECO "B19"]
[WhiteElo "2202"]
[BlackElo "1859"]
[Annotator "RC"]
[PlyCount "59"]
[EventDate "2022.07.29"]
[EventType "team-tourn"]
[EventCountry "IND"]
[SourceTitle "playchess.com"]
[Source "ChessBase"]
[SourceQuality "1"]
[WhiteTeam "Lebanon"]
[BlackTeam "CPV"]
[WhiteTeamCountry "LBN"]
[TimeControl "40/5400+30:1800+30"]

1. e4 {[%emt 0:00:03]} d5 {[%emt 0:00:15]} 2. Nc3 {[%emt 0:02:07]} c6 {[%emt 0:03:39]} 3. d4 {[%emt 0:01:27]} dxe4 {[%emt 0:02:54]} 4. Nxe4 {[%emt 0:00:15]} Bf5 {[%emt 0:01:18]} 5. Ng3 {[%emt 0:00:13]} Bg6 {[%emt 0:00:17]} 6. h4 {[%emt 0:00:06]} h6 {[%emt 0:00:32]} 7. Nf3 {[%emt 0:00:05]} Nf6 {[%emt 0:01:06]} 8. h5 {[%emt 0:02:13]} Bh7 {[%emt 0:01:14]} 9. Bd3 {[%emt 0:00:09]} Bxd3 {[%emt 0:00:27]} 10. Qxd3 {[%emt 0:00:05]} e6 {[%emt 0:00:42]} 11. Bd2 {[%emt 0:00:38]} Be7 {[%emt 0:01:22]} 12. O-O-O {[%emt 0:00:13]} O-O {[%emt 0:01:35]} 13. Ne4 {[%emt 0:01:48]} Nxe4 {[%emt 0:03:46]} 14. Qxe4 {[%emt 0:00:03]} Qd5 {[%emt 0:00:18]} 15. Qg4 {[%emt 0:08:14]} Kh8 {[%emt 0:05:09]} 16. Kb1 {[%emt 0:00:40]} Nd7 {[%emt 0:01:09]} 17. Qh3 {[%emt 0:23:20]} Nf6 {[%emt 0:09:35]} 18. Be3 {[%emt 0:07:24]} Ne4 {[%emt 0:07:23]} 19. Ne5 {[%emt 0:10:23]} Ng5 {[%emt 0:07:19]} 20. Qg3 {[%emt 0:00:30]} Bf6 {[%emt 0:09:17]} 21. f4 {[%emt 0:00:30]} Ne4 {[%emt 0:00:30]} 22. Qe1 {[%emt 0:00:30]} Kg8 {[%emt 0:00:30]} 23. c4 {[%emt 0:00:30]} Qd8 {[%emt 0:00:30]} 24. g4 {[%emt 0:18:58]} Be7 {[%emt 0:09:47]} 25. Bc1 {[%emt 0:03:31]} Nd6 {[%emt 0:27:03]} 26. Qe3 {[%emt 0:06:35]} Qc8 {[%emt 0:03:44]} 27. c5 {[%emt 0:01:39]} Ne8 {[%emt 0:00:01]} 28. g5 {[%emt 0:00:15]} f5 {[%emt 0:03:51]} 29. gxh6 {[%emt 0:01:41]} gxh6 {[%emt 0:00:00]} 30. Rhg1+ {[%emt 0:03:56]} 1-0

[Event "44th Chess Olympiad Open 2022"]
[Site "Chennai"]
[Date "2022.08.09"]
[Round "11.54"]
[White "Mirulla, David"]
[Black "Khairallah, Faisal"]
[Result "0-1"]
[ECO "B33"]
[WhiteElo "1953"]
[BlackElo "2239"]
[Annotator "RC"]
[PlyCount "52"]
[EventDate "2022.07.29"]
[EventType "team-tourn"]
[EventCountry "IND"]
[SourceTitle "playchess.com"]
[Source "ChessBase"]
[SourceQuality "1"]
[WhiteTeam "CPV"]
[BlackTeam "Lebanon"]
[BlackTeamCountry "LBN"]
[TimeControl "40/5400+30:1800+30"]

1. e4 {[%emt 0:06:58]} c5 {[%emt 0:00:11]} 2. Nf3 {[%emt 0:00:11]} Nc6 {[%emt 0:00:05]} 3. d4 {[%emt 0:00:10]} cxd4 {[%emt 0:00:06]} 4. Nxd4 {[%emt 0:00:07]} Qb6 {[%emt 0:00:08]} 5. Nb3 {[%emt 0:00:15]} Nf6 {[%emt 0:00:10]} 6. Nc3 {[%emt 0:00:10]} e6 {[%emt 0:00:07]} 7. a3 {[%emt 0:00:22]} d6 {[%emt 0:01:41]} 8. Be3 {[%emt 0:01:14]} Qc7 {[%emt 0:00:10]} 9. f4 {[%emt 0:02:22]} a6 {[%emt 0:00:28]} 10. g4 {[%emt 0:06:21]} b5 {[%emt 0:07:44]} 11. g5 {[%emt 0:09:51]} Nd7 {[%emt 0:00:04]} 12. h4 {[%emt 0:05:29]} Nb6 {[%emt 0:09:24]} 13. Bxb5 {[%emt 0:28:22]} axb5 {[%emt 0:00:38]} 14. Nxb5 {[%emt 0:00:15]} Qb8 {[%emt 0:02:58]} 15. Bxb6 {[%emt 0:08:17]} Qxb6 {[%emt 0:00:09]} 16. Nxd6+ {[%emt 0:01:27]} Bxd6 {[%emt 0:00:14]} 17. Qxd6 {[%emt 0:00:50]} Qe3+ {[%emt 0:06:32]} 18. Kf1 {[%emt 0:01:46]} Ba6+ {[%emt 0:01:55]} 19. Kg2 {[%emt 0:00:52]} Qxe4+ {[%emt 0:00:54]} 20. Kg3 {[%emt 0:04:02]} Rd8 {[%emt 0:03:13]} 21. Qc5 {[%emt 0:00:33]} Ne7 {[%emt 0:04:18]} 22. Qf2 {[%emt 0:05:13]} Nf5+ {[%emt 0:04:36]} 23. Kh3 {[%emt 0:01:08]} Ne3 {[%emt 0:01:38]} 24. Rhe1 {[%emt 0:02:08]} Qxc2 {[%emt 0:06:02]} 25. Qf3 {[%emt 0:01:37]} Nf5 {[%emt 0:06:29]} 26. Rac1 {[%emt 0:11:24]} Rd3 {[%emt 0:01:56]} 0-1

[Event "44th Chess Olympiad Open 2022"]
[Site "Chennai"]
[Date "2022.08.09"]
[Round "11.55"]
[White "Kett, Tim"]
[Black "Belzo, Krzysztof"]
[Result "1-0"]
[ECO "A43"]
[WhiteElo "2197"]
[BlackElo "2080"]
[Annotator "RC"]
[PlyCount "125"]
[EventDate "2022.07.29"]
[EventType "team-tourn"]
[EventCountry "IND"]
[SourceTitle "playchess.com"]
[Source "ChessBase"]
[SourceQuality "1"]
[WhiteTeam "Wales"]
[BlackTeam "Channel Islands"]
[WhiteTeamCountry "WLS"]
[BlackTeamCountry "JCI"]
[TimeControl "40/5400+30:1800+30"]

1. d4 {[%emt 0:00:06]} g6 {[%emt 0:01:05]} 2. e4 {[%emt 0:00:16]} Bg7 {[%emt 0:00:03]} 3. Nc3 {[%emt 0:00:12]} c5 {[%emt 0:00:23]} 4. d5 {[%emt 0:00:11]} d6 {[%emt 0:00:08]} 5. Bb5+ {[%emt 0:00:23]} Nd7 {[%emt 0:01:27]} 6. a4 {[%emt 0:00:23]} a6 {[%emt 0:00:19]} 7. Be2 {[%emt 0:00:20]} Ngf6 {[%emt 0:04:38]} 8. h3 {[%emt 0:05:51]} O-O {[%emt 0:00:28]} 9. Nf3 {[%emt 0:00:05]} Rb8 {[%emt 0:00:09]} 10. a5 {[%emt 0:00:37]} b5 {[%emt 0:02:30]} 11. axb6 {[%emt 0:00:09]} Nxb6 {[%emt 0:03:55]} 12. O-O {[%emt 0:01:22]} Ne8 {[%emt 0:04:58]} 13. Bf4 {[%emt 0:05:54]} Nd7 {[%emt 0:05:27]} 14. Ra2 {[%emt 0:03:42]} Nc7 {[%emt 0:01:00]} 15. Qd2 {[%emt 0:04:59]} Nb5 {[%emt 0:04:49]} 16. Nxb5 {[%emt 0:01:02]} axb5 {[%emt 0:00:02]} 17. Bh6 {[%emt 0:05:31]} Qb6 {[%emt 0:09:09]} 18. Bxg7 {[%emt 0:00:16]} Kxg7 {[%emt 0:00:04]} 19. Rfa1 {[%emt 0:04:29]} b4 {[%emt 0:08:49]} 20. b3 {[%emt 0:02:11]} Bb7 {[%emt 0:07:51]} 21. Qe3 {[%emt 0:22:03]} Ra8 {[%emt 0:12:12]} 22. Nd2 {[%emt 0:01:50]} Rxa2 {[%emt 0:01:44]} 23. Rxa2 {[%emt 0:00:06]} Ra8 {[%emt 0:00:21]} 24. Rxa8 {[%emt 0:04:18]} Bxa8 {[%emt 0:00:01]} 25. Nc4 {[%emt 0:00:11]} Qd8 {[%emt 0:05:10]} 26. f4 {[%emt 0:02:07]} f5 {[%emt 0:02:57]} 27. exf5 {[%emt 0:03:47]} Bxd5 {[%emt 0:00:37]} 28. fxg6 {[%emt 0:00:31]} hxg6 {[%emt 0:01:06]} 29. Bd3 {[%emt 0:06:00]} Bf7 {[%emt 0:07:35]} 30. Qg3 {[%emt 0:03:45]} d5 {[%emt 0:01:22]} 31. Ne3 {[%emt 0:00:14]} e6 {[%emt 0:00:44]} 32. f5 {[%emt 0:02:55]} Qf6 {[%emt 0:03:38]} 33. fxg6 {[%emt 0:01:57]} Bxg6 {[%emt 0:00:10]} 34. Bxg6 {[%emt 0:01:10]} Qxg6 {[%emt 0:00:02]} 35. Qd6 {[%emt 0:00:28]} Qf7 {[%emt 0:00:49]} 36. Qg3+ {[%emt 0:04:00]} Qg6 {[%emt 0:00:16]} 37. Qd6 {[%emt 0:00:08]} Qf7 {[%emt 0:00:04]} 38. Qg3+ {[%emt 0:00:23]} Kf8 {[%emt 0:00:06]} 39. Qd6+ {[%emt 0:00:25]} Qe7 {[%emt 0:00:37]} 40. Qf4+ {[%emt 0:00:16]} Qf6 {[%emt 0:00:53]} 41. Qd6+ {[%emt 0:30:23]} Ke8 {[%emt 0:32:48]} 42. Ng4 {[%emt 0:02:45]} Qe7 {[%emt 0:07:29]} 43. Qc6 {[%emt 0:02:50]} Kd8 {[%emt 0:00:00]} 44. Qa8+ {[%emt 0:00:00]} Kc7 {[%emt 0:00:00]} 45. Qa7+ {[%emt 0:00:00]} Kd8 {[%emt 0:00:00]} 46. Qa8+ {[%emt 0:00:00]} Kc7 {[%emt 0:00:00]} 47. Qa7+ {[%emt 0:00:00]} Kc6 {[%emt 0:00:00]} 48. Ne5+ {[%emt 0:00:00]} Kd6 {[%emt 0:00:00]} 49. Nxd7 {[%emt 0:00:00]} Qxd7 {[%emt 0:00:00]} 50. Qb6+ {[%emt 0:00:00]} Qc6 {[%emt 0:00:00]} 51. Qd8+ {[%emt 0:00:00]} Ke5 {[%emt 0:00:00]} 52. Qg5+ {[%emt 0:00:00]} Ke4 {[%emt 0:00:00]} 53. h4 {[%emt 0:00:00]} c4 {[%emt 0:00:00]} 54. h5 {[%emt 0:00:00]} cxb3 {[%emt 0:00:00]} 55. cxb3 {[%emt 0:00:00]} Qc5+ {[%emt 0:03:40]} 56. Kh1 {[%emt 0:00:00]} Qc3 {[%emt 0:00:07]} 57. h6 {[%emt 0:00:00]} d4 {[%emt 0:00:08]} 58. h7 {[%emt 0:00:00]} d3 {[%emt 0:00:04]} 59. Qh4+ {[%emt 0:00:00]} Ke3 {[%emt 0:00:17]} 60. h8=Q {[%emt 0:00:12]} Qxh8 {[%emt 0:01:24]} 61. Qxh8 {[%emt 0:00:12]} Ke2 {[%emt 0:00:32]} 62. Qe5+ {[%emt 0:00:52]} Kf1 {[%emt 0:01:16]} 63. Qe3 {[%emt 0:00:38]} 1-0

[Event "44th Chess Olympiad Open 2022"]
[Site "Chennai"]
[Date "2022.08.09"]
[Round "11.55"]
[White "Pleasants, Allan J"]
[Black "Forbes, Garry"]
[Result "1-0"]
[ECO "D79"]
[WhiteElo "2024"]
[BlackElo "1908"]
[Annotator "NA"]
[PlyCount "61"]
[EventDate "2022.07.29"]
[EventType "team-tourn"]
[EventCountry "IND"]
[SourceTitle "playchess.com"]
[Source "ChessBase"]
[SourceQuality "1"]
[WhiteTeam "Wales"]
[BlackTeam "Channel Islands"]
[WhiteTeamCountry "WLS"]
[BlackTeamCountry "JCI"]
[TimeControl "40/5400+30:1800+30"]

1. d4 {[%emt 0:00:12]} g6 {[%emt 0:00:07]} 2. Nf3 {[%emt 0:00:05]} Bg7 {[%emt 0:00:05]} 3. g3 {[%emt 0:00:04]} Nf6 {[%emt 0:00:04]} 4. Bg2 {[%emt 0:00:09]} O-O {[%emt 0:00:02]} 5. c4 {[%emt 0:01:02]} c6 {[%emt 0:00:26]} 6. Nc3 {[%emt 0:01:59]} d5 {[%emt 0:01:21]} 7. cxd5 {[%emt 0:01:52]} cxd5 {[%emt 0:00:12]} 8. Ne5 {[%emt 0:02:52]} Nc6 {[%emt 0:14:07]} 9. O-O {[%emt 0:08:04]} e6 {[%emt 0:12:52]} 10. Bg5 {[%emt 0:15:07]} Qb6 {[%emt 0:01:05]} 11. Na4 {[%emt 0:02:38]} Qd8 {[%emt 0:02:31]} 12. Rc1 {[%emt 0:10:13]} Qe8 {[%emt 0:08:48]} 13. Nxc6 {[%emt 0:15:12]} bxc6 {[%emt 0:00:01]} 14. Bxf6 {[%emt 0:10:11]} Bxf6 {[%emt 0:00:07]} 15. f4 {[%emt 0:00:12]} Bd7 {[%emt 0:13:47]} 16. Nc5 {[%emt 0:00:38]} Bd8 {[%emt 0:05:45]} 17. Qc2 {[%emt 0:06:36]} Rc8 {[%emt 0:01:21]} 18. e4 {[%emt 0:03:49]} Bb6 {[%emt 0:01:09]} 19. Rfe1 {[%emt 0:04:02]} Qd8 {[%emt 0:02:25]} 20. e5 {[%emt 0:00:59]} Qe7 {[%emt 0:04:19]} 21. Bf1 {[%emt 0:04:49]} Rc7 {[%emt 0:03:26]} 22. Bd3 {[%emt 0:01:01]} Bxc5 {[%emt 0:15:54]} 23. dxc5 {[%emt 0:00:18]} f6 {[%emt 0:01:03]} 24. exf6 {[%emt 0:00:32]} Qxf6 {[%emt 0:00:33]} 25. Re5 {[%emt 0:00:15]} Rb8 {[%emt 0:02:10]} 26. b3 {[%emt 0:00:45]} Rcc8 {[%emt 0:03:17]} 27. Qd2 {[%emt 0:01:30]} Qd8 {[%emt 0:03:34]} 28. Rce1 {[%emt 0:00:34]} Qc7 {[%emt 0:01:04]} 29. f5 {[%emt 0:01:07]} exf5 {[%emt 0:02:26]} 30. Re7 {[%emt 0:00:34]} f4 {[%emt 0:00:38]} 31. Qc3 {[%emt 0:00:30]} 1-0

[Event "44th Chess Olympiad Open 2022"]
[Site "Chennai"]
[Date "2022.08.09"]
[Round "11.55"]
[White "Carpenter, Paul A"]
[Black "Blackburn, Jonathan L B"]
[Result "1/2-1/2"]
[ECO "A08"]
[WhiteElo "1938"]
[BlackElo "2176"]
[Annotator "RC"]
[PlyCount "90"]
[EventDate "2022.07.29"]
[EventType "team-tourn"]
[EventCountry "IND"]
[SourceTitle "playchess.com"]
[Source "ChessBase"]
[SourceQuality "1"]
[WhiteTeam "Channel Islands"]
[BlackTeam "Wales"]
[WhiteTeamCountry "JCI"]
[BlackTeamCountry "WLS"]
[TimeControl "40/5400+30:1800+30"]

1. e4 {[%emt 0:00:08]} e6 {[%emt 0:00:04]} 2. d3 {[%emt 0:00:07]} d5 {[%emt 0:00:13]} 3. Nd2 {[%emt 0:00:08]} c5 {[%emt 0:00:20]} 4. Ngf3 {[%emt 0:00:18]} Nc6 {[%emt 0:00:08]} 5. g3 {[%emt 0:01:38]} Bd6 {[%emt 0:04:21]} 6. Bg2 {[%emt 0:01:07]} Nge7 {[%emt 0:00:13]} 7. O-O {[%emt 0:00:16]} O-O {[%emt 0:00:34]} 8. Re1 {[%emt 0:01:25]} Qc7 {[%emt 0:00:41]} 9. b3 {[%emt 0:15:14]} f6 {[%emt 0:08:43]} 10. Bb2 {[%emt 0:02:31]} Bd7 {[%emt 0:10:26]} 11. Qe2 {[%emt 0:13:24]} d4 {[%emt 0:07:21]} 12. Nc4 {[%emt 0:02:32]} e5 {[%emt 0:00:24]} 13. Nh4 {[%emt 0:10:00]} g5 {[%emt 0:04:00]} 14. Nf3 {[%emt 0:00:24]} Ng6 {[%emt 0:00:34]} 15. Nxd6 {[%emt 0:00:45]} Qxd6 {[%emt 0:00:05]} 16. Nd2 {[%emt 0:00:48]} b5 {[%emt 0:01:04]} 17. a4 {[%emt 0:14:31]} a6 {[%emt 0:00:16]} 18. Ba3 {[%emt 0:02:44]} Rac8 {[%emt 0:05:43]} 19. Bf3 {[%emt 0:02:49]} Nb4 {[%emt 0:01:33]} 20. Rec1 {[%emt 0:03:27]} Qe6 {[%emt 0:02:18]} 21. Bxb4 {[%emt 0:02:46]} cxb4 {[%emt 0:00:03]} 22. axb5 {[%emt 0:00:28]} axb5 {[%emt 0:00:18]} 23. Ra7 {[%emt 0:01:11]} Rc6 {[%emt 0:01:58]} 24. Nf1 {[%emt 0:04:47]} g4 {[%emt 0:01:39]} 25. Bg2 {[%emt 0:00:14]} Rfc8 {[%emt 0:01:50]} 26. Qd2 {[%emt 0:03:46]} Qd6 {[%emt 0:00:21]} 27. f3 {[%emt 0:03:38]} Rc3 {[%emt 0:08:16]} 28. fxg4 {[%emt 0:05:14]} Bxg4 {[%emt 0:00:21]} 29. Qh6 {[%emt 0:00:32]} R3c7 {[%emt 0:01:51]} 30. Rca1 {[%emt 0:02:38]} Qd7 {[%emt 0:06:46]} 31. Rxc7 {[%emt 0:00:35]} Rxc7 {[%emt 0:02:17]} 32. Ra8+ {[%emt 0:00:23]} Rc8 {[%emt 0:00:04]} 33. Rxc8+ {[%emt 0:00:21]} Qxc8 {[%emt 0:00:13]} 34. Qd2 {[%emt 0:00:16]} Qc3 {[%emt 0:00:19]} 35. Qc1 {[%emt 0:03:18]} Be2 {[%emt 0:01:29]} 36. Qb1 {[%emt 0:00:15]} Kg7 {[%emt 0:02:16]} 37. Kf2 {[%emt 0:00:54]} Bxf1 {[%emt 0:00:53]} 38. Bxf1 {[%emt 0:00:54]} Qd2+ {[%emt 0:00:15]} 39. Be2 {[%emt 0:00:43]} h5 {[%emt 0:03:04]} 40. Qe1 {[%emt 0:00:55]} Qxc2 {[%emt 0:02:22]} 41. Qxb4 {[%emt 0:30:30]} h4 {[%emt 0:43:33]} 42. Qxb5 {[%emt 0:00:00]} Qc8 {[%emt 0:00:00]} 43. Kg2 {[%emt 0:00:00]} Qc2 {[%emt 0:00:00]} 44. Kf2 {[%emt 0:00:00]} Qc8 {[%emt 0:00:00]} 45. Kg2 {[%emt 0:00:00]} Qc2 {[%emt 0:00:00]} 1/2-1/2

[Event "44th Chess Olympiad Open 2022"]
[Site "Chennai"]
[Date "2022.08.09"]
[Round "11.55"]
[White "Gurner, Jem"]
[Black "Bullen, Alex"]
[Result "1/2-1/2"]
[ECO "D37"]
[WhiteElo "1800"]
[BlackElo "2106"]
[Annotator "RC"]
[PlyCount "124"]
[EventDate "2022.07.29"]
[EventType "team-tourn"]
[EventCountry "IND"]
[SourceTitle "playchess.com"]
[Source "ChessBase"]
[SourceQuality "1"]
[WhiteTeam "Channel Islands"]
[BlackTeam "Wales"]
[WhiteTeamCountry "JCI"]
[BlackTeamCountry "WLS"]
[TimeControl "40/5400+30:1800+30"]

1. d4 {[%emt 0:00:01]} d5 {[%emt 0:00:08]} 2. c4 {[%emt 0:00:05]} e6 {[%emt 0:00:08]} 3. Nc3 {[%emt 0:00:05]} Nf6 {[%emt 0:00:07]} 4. Nf3 {[%emt 0:00:07]} a6 {[%emt 0:01:21]} 5. cxd5 {[%emt 0:00:47]} exd5 {[%emt 0:00:10]} 6. Bg5 {[%emt 0:00:41]} Be6 {[%emt 0:00:09]} 7. e3 {[%emt 0:00:33]} c6 {[%emt 0:01:32]} 8. Bd3 {[%emt 0:01:14]} Bd6 {[%emt 0:00:21]} 9. O-O {[%emt 0:00:37]} Nbd7 {[%emt 0:01:15]} 10. Qc2 {[%emt 0:01:42]} h6 {[%emt 0:00:09]} 11. Bh4 {[%emt 0:00:29]} Qc7 {[%emt 0:00:33]} 12. Rfe1 {[%emt 0:06:23]} O-O {[%emt 0:03:52]} 13. Bg3 {[%emt 0:04:07]} Nh5 {[%emt 0:07:55]} 14. Bxd6 {[%emt 0:08:41]} Qxd6 {[%emt 0:00:08]} 15. e4 {[%emt 0:00:27]} dxe4 {[%emt 0:03:10]} 16. Nxe4 {[%emt 0:00:16]} Qf4 {[%emt 0:01:43]} 17. Ne5 {[%emt 0:10:32]} Nxe5 {[%emt 0:08:31]} 18. dxe5 {[%emt 0:00:09]} Qxe5 {[%emt 0:02:25]} 19. Nc5 {[%emt 0:00:47]} Qg5 {[%emt 0:02:44]} 20. Nxb7 {[%emt 0:13:16]} Nf4 {[%emt 0:08:44]} 21. Be4 {[%emt 0:03:14]} Bf5 {[%emt 0:08:40]} 22. g3 {[%emt 0:06:46]} Nh3+ {[%emt 0:11:23]} 23. Kg2 {[%emt 0:01:39]} Nf4+ {[%emt 0:01:59]} 24. Kh1 {[%emt 0:02:45]} Bxe4+ {[%emt 0:00:16]} 25. Qxe4 {[%emt 0:01:01]} Ne6 {[%emt 0:04:20]} 26. Nd6 {[%emt 0:05:49]} Qd5 {[%emt 0:02:45]} 27. Rad1 {[%emt 0:09:42]} Qxe4+ {[%emt 0:00:07]} 28. Nxe4 {[%emt 0:00:08]} Rfd8 {[%emt 0:00:48]} 29. Kg2 {[%emt 0:02:58]} Rd5 {[%emt 0:05:33]} 30. Nc3 {[%emt 0:02:45]} Rdd8 {[%emt 0:02:22]} 31. Na4 {[%emt 0:04:48]} Rab8 {[%emt 0:00:23]} 32. b3 {[%emt 0:01:10]} Rd5 {[%emt 0:00:48]} 33. Nc3 {[%emt 0:02:02]} Rdd8 {[%emt 0:02:58]} 34. f4 {[%emt 0:02:47]} c5 {[%emt 0:02:18]} 35. Rxd8+ {[%emt 0:02:20]} Rxd8 {[%emt 0:00:18]} 36. Rd1 {[%emt 0:00:31]} Rxd1 {[%emt 0:04:44]} 37. Nxd1 {[%emt 0:00:05]} Kf8 {[%emt 0:00:07]} 38. Kf3 {[%emt 0:00:54]} Ke7 {[%emt 0:00:13]} 39. Ke4 {[%emt 0:00:58]} Kd6 {[%emt 0:01:04]} 40. Ne3 {[%emt 0:00:35]} Nd4 {[%emt 0:04:41]} 41. g4 {[%emt 0:34:22]} g6 {[%emt 0:37:48]} 42. f5 {[%emt 0:00:00]} Nc6 {[%emt 0:00:00]} 43. Nc4+ {[%emt 0:00:00]} Ke7 {[%emt 0:00:00]} 44. a3 {[%emt 0:00:00]} gxf5+ {[%emt 0:00:00]} 45. gxf5 {[%emt 0:00:00]} Nd4 {[%emt 0:00:00]} 46. b4 {[%emt 0:00:00]} Nb3 {[%emt 0:00:00]} 47. Ke5 {[%emt 0:00:00]} f6+ {[%emt 0:00:00]} 48. Kd5 {[%emt 0:00:00]} cxb4 {[%emt 0:00:00]} 49. axb4 {[%emt 0:00:00]} Nc1 {[%emt 0:00:00]} 50. Kd4 {[%emt 0:00:00]} h5 {[%emt 0:00:00]} 51. Nb6 {[%emt 0:00:01]} Kd6 {[%emt 0:00:00]} 52. Ke4 {[%emt 0:03:19]} Nb3 {[%emt 0:00:00]} 53. Nc4+ {[%emt 0:01:45]} Kc6 {[%emt 0:00:00]} 54. Ne3 {[%emt 0:00:29]} Nd2+ {[%emt 0:00:00]} 55. Kf4 {[%emt 0:00:51]} Kd6 {[%emt 0:00:00]} 56. h3 {[%emt 0:00:30]} Nb3 {[%emt 0:00:00]} 57. Ke4 {[%emt 0:00:48]} Nd2+ {[%emt 0:00:46]} 58. Kd4 {[%emt 0:00:21]} Nf3+ {[%emt 0:00:53]} 59. Ke4 {[%emt 0:00:32]} Ng5+ {[%emt 0:01:01]} 60. Kd4 {[%emt 0:00:07]} Nf3+ {[%emt 0:01:55]} 61. Ke4 {[%emt 0:01:01]} Ng5+ {[%emt 0:00:32]} 62. Kd4 {[%emt 0:00:07]} Nf3+ {[%emt 0:06:05]} 1/2-1/2

[Event "44th Chess Olympiad Open 2022"]
[Site "Chennai"]
[Date "2022.08.09"]
[Round "11.56"]
[White "Christie, Joshua"]
[Black "Namale, Ben Nguku"]
[Result "1-0"]
[ECO "D36"]
[WhiteElo "2272"]
[BlackElo "1962"]
[Annotator "RC"]
[PlyCount "62"]
[EventDate "2022.07.29"]
[EventType "team-tourn"]
[EventCountry "IND"]
[SourceTitle "playchess.com"]
[Source "ChessBase"]
[SourceQuality "1"]
[WhiteTeam "Jamaica"]
[BlackTeam "Kenya"]
[WhiteTeamCountry "JAM"]
[BlackTeamCountry "KEN"]
[TimeControl "40/5400+30:1800+30"]

1. d4 {[%emt 0:00:23]} d5 {[%emt 0:00:07]} 2. c4 {[%emt 0:00:08]} e6 {[%emt 0:00:32]} 3. Nc3 {[%emt 0:00:10]} Nf6 {[%emt 0:00:43]} 4. cxd5 {[%emt 0:00:30]} exd5 {[%emt 0:00:17]} 5. Bg5 {[%emt 0:00:13]} Be7 {[%emt 0:01:41]} 6. Qc2 {[%emt 0:00:58]} c6 {[%emt 0:00:08]} 7. e3 {[%emt 0:00:20]} O-O {[%emt 0:00:21]} 8. Bd3 {[%emt 0:00:25]} h6 {[%emt 0:00:43]} 9. Bh4 {[%emt 0:00:20]} Re8 {[%emt 0:00:20]} 10. Nge2 {[%emt 0:00:45]} Nh5 {[%emt 0:05:17]} 11. Bxe7 {[%emt 0:08:09]} Qxe7 {[%emt 0:00:07]} 12. O-O-O {[%emt 0:00:54]} b5 {[%emt 0:11:21]} 13. Bh7+ {[%emt 0:08:25]} Kh8 {[%emt 0:01:42]} 14. Bf5 {[%emt 0:00:22]} b4 {[%emt 0:06:02]} 15. Nxd5 {[%emt 0:05:42]} cxd5 {[%emt 0:12:18]} 16. Bxc8 {[%emt 0:00:13]} Nd7 {[%emt 0:00:42]} 17. Bxd7 {[%emt 0:04:46]} Qxd7 {[%emt 0:00:01]} 18. Kb1 {[%emt 0:00:32]} Nf6 {[%emt 0:00:33]} 19. Ng3 {[%emt 0:01:02]} Re6 {[%emt 0:11:41]} 20. Rc1 {[%emt 0:01:04]} Ra6 {[%emt 0:02:33]} 21. Qb3 {[%emt 0:02:51]} Rb8 {[%emt 0:01:33]} 22. Rc5 {[%emt 0:01:55]} Rb7 {[%emt 0:03:30]} 23. Rhc1 {[%emt 0:01:02]} g6 {[%emt 0:00:14]} 24. Ka1 {[%emt 0:02:30]} h5 {[%emt 0:00:36]} 25. f3 {[%emt 0:04:39]} Qd6 {[%emt 0:04:51]} 26. e4 {[%emt 0:11:02]} dxe4 {[%emt 0:02:22]} 27. Qe3 {[%emt 0:02:39]} Kg7 {[%emt 0:02:13]} 28. Rg5 {[%emt 0:22:50]} Kh7 {[%emt 0:13:01]} 29. Nxe4 {[%emt 0:02:30]} Qd7 {[%emt 0:17:45]} 30. Ng3 {[%emt 0:00:02]} Kg7 31. Nf5+ {[%emt 0:00:15]} Kh7 {[%emt 0:01:26]} 1-0

[Event "44th Chess Olympiad Open 2022"]
[Site "Chennai"]
[Date "2022.08.09"]
[Round "11.56"]
[White "Lorne, Ras Malaku"]
[Black "Njoroge, Martin"]
[Result "1/2-1/2"]
[ECO "D31"]
[WhiteElo "2079"]
[BlackElo "1973"]
[Annotator "NA RC"]
[PlyCount "92"]
[EventDate "2022.07.29"]
[EventType "team-tourn"]
[EventCountry "IND"]
[SourceTitle "playchess.com"]
[Source "ChessBase"]
[SourceQuality "1"]
[WhiteTeam "Jamaica"]
[BlackTeam "Kenya"]
[WhiteTeamCountry "JAM"]
[BlackTeamCountry "KEN"]
[TimeControl "40/5400+30:1800+30"]

1. d4 {[%emt 0:00:04]} d5 {[%emt 0:04:10]} 2. c4 {[%emt 0:00:20]} e6 {[%emt 0:00:31]} 3. Nc3 {[%emt 0:00:26]} Be7 {[%emt 0:00:43]} 4. Nf3 {[%emt 0:00:19]} c6 {[%emt 0:00:11]} 5. e4 {[%emt 0:00:40]} dxe4 {[%emt 0:01:13]} 6. Nxe4 {[%emt 0:00:17]} Nf6 {[%emt 0:00:09]} 7. Nc3 {[%emt 0:00:27]} O-O {[%emt 0:00:59]} 8. Be2 {[%emt 0:00:57]} a6 {[%emt 0:04:14]} 9. a4 {[%emt 0:02:39]} a5 {[%emt 0:06:46]} 10. O-O {[%emt 0:00:37]} Na6 {[%emt 0:00:00]} 11. Bf4 {[%emt 0:01:17]} Nb4 {[%emt 0:02:53]} 12. Qb3 {[%emt 0:05:41]} Nh5 {[%emt 0:07:14]} 13. Be3 {[%emt 0:00:37]} Nf6 {[%emt 0:04:16]} 14. Rad1 {[%emt 0:01:00]} Bd7 {[%emt 0:00:49]} 15. Ne5 {[%emt 0:04:29]} Qc8 {[%emt 0:01:07]} 16. g4 {[%emt 0:06:21]} Be8 {[%emt 0:04:25]} 17. f4 {[%emt 0:06:50]} h6 {[%emt 0:18:45]} 18. Bf3 {[%emt 0:20:43]} Nd7 {[%emt 0:03:30]} 19. Ne4 {[%emt 0:08:10]} f6 {[%emt 0:08:37]} 20. Nd3 {[%emt 0:01:13]} Nxd3 {[%emt 0:00:39]} 21. Qxd3 {[%emt 0:02:09]} Bf7 {[%emt 0:01:32]} 22. Ng3 {[%emt 0:05:50]} Rd8 {[%emt 0:04:53]} 23. Be4 {[%emt 0:03:40]} Nc5 {[%emt 0:01:38]} 24. Bh7+ {[%emt 0:00:27]} Kh8 {[%emt 0:00:22]} 25. Qc2 {[%emt 0:00:18]} Nxa4 {[%emt 0:00:53]} 26. Be4 {[%emt 0:05:45]} Nb6 {[%emt 0:02:38]} 27. b3 {[%emt 0:09:33]} Nd7 {[%emt 0:04:55]} 28. Qe2 {[%emt 0:06:56]} Qc7 {[%emt 0:05:40]} 29. Bc1 {[%emt 0:02:32]} Nf8 {[%emt 0:00:50]} 30. Rfe1 {[%emt 0:03:19]} Bb4 {[%emt 0:03:02]} 31. Rf1 {[%emt 0:00:14]} Be7 {[%emt 0:00:22]} 32. Rfe1 {[%emt 0:01:00]} a4 {[%emt 0:00:39]} 33. bxa4 {[%emt 0:00:13]} Rxa4 {[%emt 0:00:13]} 34. Bc2 {[%emt 0:00:13]} Ra2 {[%emt 0:00:53]} 35. Qe4 {[%emt 0:00:20]} Bb4 {[%emt 0:00:54]} 36. Re3 {[%emt 0:00:47]} Qa5 {[%emt 0:01:55]} 37. Bb1 {[%emt 0:00:34]} Qa4 {[%emt 0:01:12]} 38. Red3 {[%emt 0:00:32]} Ra1 {[%emt 0:03:01]} 39. Bb2 {[%emt 0:00:19]} e5 {[%emt 0:01:41]} 40. Bxa1 {[%emt 0:01:50]} Qxa1 {[%emt 0:00:09]} 41. d5 {[%emt 0:30:37]} cxd5 {[%emt 0:31:32]} 42. cxd5 {[%emt 0:00:35]} Bc5+ {[%emt 0:00:15]} 43. Kg2 {[%emt 0:00:00]} exf4 {[%emt 0:00:00]} 44. Nf5 {[%emt 0:00:00]} Re8 {[%emt 0:00:00]} 45. Qxf4 {[%emt 0:00:00]} Re2+ {[%emt 0:00:00]} 46. Kh1 {[%emt 0:00:00]} Ng6 {[%emt 0:00:00]} 1/2-1/2